{"text_format":"1","workbook":"xlsx","n_sheets":1,"sheets":["tiempo parcial"],"not_rendered":{"charts":0,"images":1,"macros":1,"external_links":0,"defined_names":0,"comments":0,"pivot_tables":0},"unopened":[],"bounds":{"document_bytes":16777216,"sheet_cells":100000,"rows_first":2000,"rows_last":500,"rows_between":2000,"halvings":0,"cell_chars":16384,"cell_head_chars":4096},"cells_cut":0,"cells_raw":0,"read":"whole","date_system":"1900"}

{"sheet":"tiempo parcial","index":0,"n_rows":51,"n_cols":13,"rows_kept":51,"cut":false,"hidden":false,"merged":[[1,6,1,9],[3,2,3,9],[4,1,4,4],[5,0,5,8],[6,0,6,1],[6,2,6,9],[46,0,48,4],[46,9,50,9],[50,1,50,3],[7,1,7,5],[8,0,8,2],[8,3,8,5],[9,0,10,0],[9,1,9,2],[9,3,9,4],[9,5,10,5],[9,6,10,6],[9,7,9,8],[9,9,10,9],[42,0,42,4],[43,0,43,9]]}
[]
[null,"REGISTRE DE JORNADA",null,null,null,null,"Treballadors a temps parcial"]
[]
["Raó social:"]
["CIF:"]
["DADES DEL TREBALLADOR/A"]
[" Nom i cognoms:"]
[" NIF:"]
["Període de liquidació:",null,null,null,null,null,"Data:"]
["Dia del mes","Matí",null,"Tarda",null,"Total hores \njornada","Hores \nordinàries","Hores complementàries",null,"Firma diària del treballador/a",null,null,""]
[null,"Hora\nentrada (hh:mm)","Hora\nsortida\n(hh:mm)","Hora\nentrada (hh:mm)","Hora\nsortida\n(hh:mm)",null,null,"Voluntàries","Pactades"]
[1,null,null,null,null,{"$f":"SUM(C12-B12)+(E12-D12)","v":"00:00:00"}]
[2,null,null,null,null,{"$f":"SUM(C13-B13)+(E13-D13)","v":"00:00:00"}]
[3,null,null,null,null,"00:00:00"]
[4,null,null,null,null,"00:00:00"]
[5,null,null,null,null,"00:00:00"]
[6,null,null,null,null,"00:00:00"]
[7,null,null,null,null,"00:00:00"]
[8,null,null,null,null,"00:00:00"]
[9,null,null,null,null,"00:00:00"]
[10,null,null,null,null,"00:00:00"]
[11,null,null,null,null,"00:00:00"]
[12,null,null,null,null,"00:00:00"]
[13,null,null,null,null,"00:00:00"]
[14,null,null,null,null,"00:00:00"]
[15,null,null,null,null,"00:00:00"]
[16,null,null,null,null,"00:00:00"]
[17,null,null,null,null,"00:00:00"]
[18,null,null,null,null,"00:00:00"]
[19,null,null,null,null,"00:00:00"]
[20,null,null,null,null,"00:00:00"]
[21,null,null,null,null,"00:00:00"]
[22,null,null,null,null,"00:00:00"]
[23,null,null,null,null,"00:00:00"]
[24,null,null,null,null,"00:00:00"]
[25,null,null,null,null,"00:00:00"]
[26,null,null,null,null,"00:00:00"]
[27,null,null,null,null,"00:00:00"]
[28,null,null,null,null,"00:00:00"]
[29,null,null,null,null,"00:00:00"]
[30,null,null,null,null,"00:00:00"]
[31,null,null,null,null,"00:00:00"]
["Total horas mes",null,null,null,null,{"$f":"SUM(F12:F42)","v":0}]
["REGISTRE d'acord amb l'obligació establerta al Text Refós de l'Estatut dels Treballadors."]
[]
["Rebut pel treballador/a",null,null,null,null,null,null,null,"Firma de l' empresa"]
[]
[]
[]
[]
["Data:"]